Cogmind - Beta 15 @@@ ROGUE MODE // 2025.05.04 @ 15:37:27 Player: szymekc Result: Destroyed by CN-IAF(j) with Overtuned Pulse Rifle Performance ------------- Evolutions (1) 500 Regions Visited (6) 1200 Robots Destroyed (110) 550 Value Destroyed (2877) 2877 Prototype IDs (27) 540 Alien Tech Used (0) 0 Bonus (1166) 1166 TOTAL SCORE: 6833 Bonus ------- High Alert Combat Kills 156 Follower Combat Kills 210 Registered with UFD 300 Met Optimus in HQ 500 Cogmind --------- Core Integrity 0/400 Matter 300/300 Energy 154/170 System Corruption 0% Temperature Cool (36) Movement Flying (34) Location -9/Scraptown Parts ------- > --- POWER (1) -------- Makeshift Power Source > --- PROPULSION (3) --- Improved Flight Unit Improved Flight Unit Improved Flight Unit > --- UTILITY (3) ------ Large Storage Unit Advanced Weight Redist. System > --- WEAPON (2) ------- (None) > --- INVENTORY (15) --- Makeshift Power Source Experimental Sensor Array Advanced Signal Interpreter Surveybot 24 Chip Transport Network Coupler Makeshift Hacking Suite Makeshift Hacking Suite Makeshift Hacking Suite Master Drone Bay (1/1) Scatter Rocket Array LU-1G1's Laser Shovel CPS Tube (2) CPS Tube (2) DM-GVY's Chainsaw Vortex Trap Peak State ------------ > --- POWER ------------ Light Angular Momentum Engine > --- PROPULSION ------- Improved Flight Unit Improved Flight Unit Improved Flight Unit > --- UTILITY ---------- Huge Storage Unit Advanced Weight Redist. System System Shield > --- WEAPON ----------- Heavy Plasma Cannon Heavy Plasma Cannon > --- INVENTORY -------- Cooled Ion Engine Light Treads Light Treads Light Treads Improved Treads Improved Treads Medium Treads Compact Wheel Compact Wheel Compact Wheel Advanced Heat Sink High-capacity Storage Unit Experimental Sensor Array Advanced Signal Interpreter IFF Parser Transport Network Coupler Drone Bay Heavy Plasma Cannon Heavy Plasma Cannon Improved Assault Rifle Scatter Rocket Array CPS Tube CPS Tube Scythe Vortex Trap [Rating: 38] Favorites ----------- Power Heavy Ion Engine Engine Heavy Ion Engine Power Core Light Nuclear Core Propulsion Light Treads Treads Light Treads Wheel Compact Wheel Flight Unit Improved Flight Unit Utility Huge Storage Unit Device Cooling System Storage Huge Storage Unit Processor Visual Processing Unit Hackware System Shield Protection Light Armor Plating Weapon Ion Cannon Energy Gun Improved EM Shotgun Energy Cannon Ion Cannon Ballistic Gun Light Assault Rifle Launcher Grenade Launcher Special Weapon LU-1G1's Laser Shovel Impact Weapon Hammer Slashing Weapon Scythe Build | -11 -10 -10 -9 -9 -9 -9 ------- Run | Yrd Mat Min Mat Sto Rec Scr Slots Evolved 2 | . . . 2 . . . Power . | . . . . . . . Propulsion 1 | . . . 1 . . . Utility 1 | . . . 1 . . . Weapon . | . . . . . . . Parts Attached 82 | 7 10 5 30 15 1 14 Power 12 | 1 1 1 2 3 . 4 Engine 11 | 1 1 1 2 3 . 3 Core 1 | . . . . . . 1 Reactor . | . . . . . . . Propulsion 24 | 2 . 2 10 6 . 4 Treads 18 | 2 . 2 9 5 . . Leg . | . . . . . . . Wheel 3 | . . . . 1 . 2 Hover . | . . . . . . . Flight 3 | . . . 1 . . 2 Utility 18 | 2 3 1 7 1 1 3 Device 8 | 2 . . 4 1 . 1 Storage 5 | . 2 . 2 . . 1 Processor 3 | . 1 . 1 . . 1 Hackware 1 | . . . . . 1 . Protection 1 | . . 1 . . . . Artifact . | . . . . . . . Weapon 28 | 2 6 1 11 5 . 3 Energy Gun 3 | . . . 1 2 . . Energy Cannon 9 | . 1 . 4 2 . 2 Ballistic Gun 8 | 2 3 1 2 . . . Ballistic Cannon . | . . . . . . . Launcher 4 | . 1 . 2 1 . . Special Weapon 1 | . . . . . . 1 Impact Weapon 2 | . 1 . 1 . . . Slashing Weapon 1 | . . . 1 . . . Piercing Weapon . | . . . . . . . Special Melee Weapon . | . . . . . . . Unidentified Prototypes 9 | . . . 4 4 . 1 Parts Lost 9 | . 1 4 1 1 . 2 Power 3 | . 1 . 1 . . 1 Propulsion 2 | . . 1 . 1 . . Utility 3 | . . 2 . . . 1 Weapon 1 | . . 1 . . . . Highest Loss Streak 2 | . 1 2 1 1 . 1 To Critical Strikes . | . . . . . . . Average Backups 19 | . 8 13 21 24 25 19 Power . | . . . . 1 1 . Propulsion 7 | . 1 2 7 11 11 6 Utility 4 | . 2 5 4 3 5 5 Weapon 6 | . 3 5 8 8 8 4 Tool/Special . | . . . . . . . Unused Backups 43 | . 2 1 11 2 . 27 Power 3 | . . . 1 1 . 1 Propulsion 8 | . . . 3 . . 5 Utility 17 | . 2 . 3 . . 12 Weapon 13 | . . 1 4 1 . 7 Tool/Special 2 | . . . . . . 2 Average Slot Usage (%) 97 | . 99 96 98 100 100 92 Engine 11 | . 13 14 10 11 11 10 Treads 23 | . 28 28 33 32 33 . Wheel 5 | . . . . . . 19 Flight 3 | . . . . . . 13 Device 6 | . 5 . 10 11 1 4 Storage 11 | . 10 14 11 11 11 11 Processor 9 | . 12 5 10 11 11 6 Hackware 4 | . . . . . 9 10 Energy Cannon 16 | . 9 5 19 20 22 13 Ballistic Gun 3 | . 17 22 2 . . . Peak Build Rating 38 | 7 8 11 24 25 24 38 Average Rating 20 | 5 7 9 20 22 23 26 On Entrance 13 | . 7 8 10 21 23 24 Naked Turns . | . . . . . . . Heaviest Build 109 | 7 29 35 101 102 102 109 Greatest Support 69 | 40 40 40 69 63 63 63 Greatest Overweight (x) 6 | . . . 1 6 1 4 Average Overweight (x) . | . . . . 1 1 1 Largest Inventory Capacity 25 | 5 15 15 25 25 25 25 Average Capacity 21 | 5 12 15 22 25 25 21 Most Carried 25 | 2 14 15 25 25 25 25 Average Carried 20 | . 8 14 22 24 25 19 Final Capacity 25 | 5 15 15 25 25 25 15 Final Carried 25 | 2 13 14 25 25 25 15 Class Distribution -------------------- 49% | Mutant 45% | Commander-Mutant 5% | Scavenger-Mutant Dominant Class ---------------- Mutant | -10/Materials Mutant | -10/Mines Mutant | -9/Materials Mutant | -9/Storage Commander-Mutant | -9/Recycling Commander-Mutant | -9/Scraptown Resources | -11 -10 -10 -9 -9 -9 -9 ----------- Run | Yrd Mat Min Mat Sto Rec Scr Matter Collected 1576 | 303 200 105 478 258 17 215 Remotely 89 | 73 16 . . . . . Salvage Created 3822 | 164 564 137 1429 1183 345 . Parts 256 | 16 52 15 80 75 18 . Haulers Intercepted 8 | . 2 . 4 2 . . Recyclers Shooed 3 | . . . 2 1 . . Parts Field Recycled . | . . . . . . . Retrieved Matter . | . . . . . . . Parts Self-Destructed . | . . . . . . . Prevented . | . . . . . . . Kills | -11 -10 -10 -9 -9 -9 -9 ------- Run | Yrd Mat Min Mat Sto Rec Scr Combat Hostiles Destroyed 84 | . 19 5 33 21 6 . Guns 20 | . 11 2 2 5 . . Cannons 50 | . 6 . 25 13 6 . AOE 14 | . 2 3 6 3 . . Classes Destroyed 12 | 2 4 1 4 . 1 . Worker 3 | . . . 3 . . . Tunneler 5 | 4 . 1 . . . . Hauler 8 | . 2 . 4 2 . . Recycler 5 | 1 1 . . 2 1 . Operator 3 | . 1 . . 2 . . Watcher 2 | . . . 2 . . . Swarmer 26 | . 12 3 7 3 1 . Grunt 30 | . 7 . 15 8 . . Brawler 2 | . . . 2 . . . Duelist 1 | . . . 1 . . . Sentry 23 | . . 2 8 10 3 . Programmer 2 | . . . . . 2 . Best Kill Streak 7 | 2 5 3 7 5 3 . Combat Bots Only 6 | . 5 3 6 5 3 . Max Kills in Single Turn 4 | 1 2 3 4 1 2 . Gunslinging . | . . . . . . . Exploded 4 | . 2 3 4 1 . . Melee . | . . . . . . . Uniques/NPCs Destroyed . | . . . . . . . Combat | -11 -10 -10 -9 -9 -9 -9 -------- Run | Yrd Mat Min Mat Sto Rec Scr Hostile Shots Fired 345 | . 61 31 98 119 6 30 Missed 102 | . 21 2 23 38 1 17 Hits 243 | . 40 29 75 81 5 13 Melee 1 | . . . 1 . . . Projectile 242 | . 40 29 74 81 5 13 AOE 10 | . . 10 . . . . Critical Strikes 8 | . . . 1 5 1 1 Damage Taken 3384 | . 383 607 938 1138 98 220 Core 546 | . 58 65 109 185 . 129 Absorbed by Shields . | . . . . . . . Core Remaining (%) 75 | 100 . 50 . . . . Volleys Fired 231 | 17 56 11 77 61 9 . Largest 2 | 2 2 2 2 2 2 . Hottest 128 | 40 80 80 128 120 128 . Shots Fired 447 | 33 110 21 153 113 17 . Gun 162 | 33 77 18 12 22 . . Cannon 271 | . 32 2 134 86 17 . Launcher 14 | . 1 1 7 5 . . Special . | . . . . . . . Kinetic 140 | 33 77 18 12 . . . Thermal 271 | . 32 2 134 86 17 . Explosive 14 | . 1 1 7 5 . . Electromagnetic 22 | . . . . 22 . . Robot Hit Streak 21 | 4 10 4 8 21 6 . Robot Miss Streak 4 | 3 4 1 3 3 2 . Penetration Max . | . . . . . . . Secondary Targets . | . . . . . . . Shots Hit Robots 272 | 16 69 13 92 72 10 . Core Hits 148 | 10 34 10 49 37 8 . Critical Kills 1 | . . . . 1 . . Critical Parts Destroyed . | . . . . . . . Critical Strikes 1 | . . . . 1 . . Meltdown 1 | . . . . 1 . . Melee Attacks 7 | . 4 . 1 . . 2 Impact 5 | . 4 . 1 . . . Slashing 2 | . . . . . . 2 Piercing . | . . . . . . . Sneak Attacks . | . . . . . . . Combat Hostiles . | . . . . . . . Follow-up Attacks . | . . . . . . . Damage Inflicted 6237 | 121 842 237 2821 1878 338 . Guns 1156 | 121 432 117 118 368 . . Cannons 3849 | . 319 17 1913 1280 320 . Explosions 1086 | . 70 96 732 188 . . Melee . | . . . . . . . Ramming 146 | . 21 7 58 42 18 . Kinetic 788 | 121 432 117 118 . . . Thermal 3849 | . 319 17 1913 1280 320 . Explosive 1086 | . 70 96 732 188 . . Electromagnetic 368 | . . . . 368 . . Impact . | . . . . . . . Slashing . | . . . . . . . Piercing . | . . . . . . . Highest Corruption . | . . . . . . . Average Corruption . | . . . . . . . Corruption Purged . | . . . . . . . Corruption Blocked . | . . . . . . . Overload Shots . | . . . . . . . Overflow Damage 71 | . . . 68 . 3 . Projectiles 50 | . . . 47 . 3 . Explosions 9 | . . . 9 . . . Melee 12 | . . . 12 . . . Knockbacks . | . . . . . . . Impact . | . . . . . . . Kinetic . | . . . . . . . Secondary . | . . . . . . . Self-Inflicted Damage 106 | . . . 40 66 . . Shots 6 | . . . 4 2 . . Rammed 14 | . 3 1 5 3 2 . Targets Rammed 18 | . 4 2 7 3 2 . Kicked . | . . . . . . . Crushed 4 | . 1 1 2 . . . Highest Temperature 246 | . 180 40 210 36 246 18 Average Temperature 57 | . 64 16 55 8 91 9 Received Heat Transfer 981 | . 90 54 294 414 33 96 Siege Activations . | . . . . . . . Martial Activations . | . . . . . . . Shielding Activations . | . . . . . . . Robots Disrupted . | . . . . . . . Combat Hostiles . | . . . . . . . Robots Corrupted . | . . . . . . . Combat Hostiles . | . . . . . . . Parts Fried 4 | . . . . 4 . . Impact Corruptions 1 | . . . 1 . . . Robots Melted 1 | . . . . 1 . . Combat Hostiles . | . . . . . . . Parts Melted 3 | . . . 2 1 . . Heat Transferred 6159 | . 666 37 3034 1998 424 . Parts Sabotaged . | . . . . . . . Parts Stolen . | . . . . . . . Parts Stripped . | . . . . . . . Power Chain Reactions . | . . . . . . . Alert | -11 -10 -10 -9 -9 -9 -9 ------- Run | Yrd Mat Min Mat Sto Rec Scr Maximum Alert Level 2 | . . . 2 2 . . Low Security (%) 64 | 100 100 100 42 4 100 . Level 1 20 | . . . 42 39 . . Level 2 14 | . . . 14 55 . . Level 3 . | . . . . . . . Level 4 . | . . . . . . . Level 5 . | . . . . . . . High Security . | . . . . . . . Max Security . | . . . . . . . Peak Influence 601 | 10 125 122 601 548 199 . Initial 247 | . . 7 . 247 199 . Average 181 | 1 42 38 259 397 62 . Influence Increases 3005 | 25 572 160 1085 798 365 . Destroy 0b10 Robot/C 1700 | . 380 100 660 420 140 . Destroy 0b10 Robot/NC 135 | 25 20 5 45 30 10 . Destroy Leader 430 | . 94 10 182 144 . . Allied During Kill 73 | . . . . 15 58 . Successful Hack 135 | . 27 . 60 43 5 . Select Force Hacks 150 | . . . . . 150 . Disable Machine 180 | . 30 45 45 60 . . Destroy Structure 82 | . 6 . 33 41 2 . Lose Combat Pursuer 120 | . 15 . 60 45 . . Influence Decreases 3005 | 25 552 180 500 870 878 . Entered New Map 665 | . . 13 . 338 314 . Time Decay 2166 | 25 430 147 500 522 542 . Lost Part 40 | . 10 20 . 10 . . Lost Ally 22 | . . . . . 22 . Purge Threat 112 | . 112 . . . . . Squads Dispatched 12 | . 5 . 3 4 . . Investigation 4 | . 3 . 1 . . . Extermination . | . . . . . . . Reinforcement 5 | . 2 . 2 1 . . Assault . | . . . . . . . Garrison 3 | . . . . 3 . . Intercept . | . . . . . . . Searches Triggered . | . . . . . . . Construction Impeded 1 | . . . . 1 . . Haulers Reinforced . | . . . . . . . Active Scanning Responses . | . . . . . . . Cargo Convoy Interrupts . | . . . . . . . Stealth | -11 -10 -10 -9 -9 -9 -9 --------- Run | Yrd Mat Min Mat Sto Rec Scr Distress Signals 12 | . 1 . 7 4 . . Communications Jammed . | . . . . . . . Distress Signals . | . . . . . . . Times Spotted 156 | . 32 7 55 31 6 25 Peak Tracking Total 9 | . 6 3 6 5 4 9 Tactical Retreats 7 | . 1 . 3 2 . 1 Traps | -11 -10 -10 -9 -9 -9 -9 ------- Run | Yrd Mat Min Mat Sto Rec Scr Traps Triggered 4 | . 2 . 1 1 . . Indirectly . | . . . . . . . Trap Hack Attempts . | . . . . . . . Triggered . | . . . . . . . Disarmed . | . . . . . . . Reprogrammed 1 | . . . 1 . . . Reused . | . . . . . . . Traps Extracted . | . . . . . . . Installed . | . . . . . . . Triggered . | . . . . . . . Most Traps Carried 1 | . . . . . . 1 Machines | -11 -10 -10 -9 -9 -9 -9 ---------- Run | Yrd Mat Min Mat Sto Rec Scr Machines Disabled 22 | . 2 3 3 4 . 10 Max in Single Turn 2 | . 1 2 1 1 . 1 Machines Repaired . | . . . . . . . Machines Dismantled . | . . . . . . . Machines Sabotaged . | . . . . . . . Overloaded Fab Kills . | . . . . . . . Hacking | -11 -10 -10 -9 -9 -9 -9 --------- Run | Yrd Mat Min Mat Sto Rec Scr Machines Accessed 37 | . 8 . 9 8 9 3 Terminals 27 | . 6 . 9 8 4 . Fabricators . | . . . . . . . Repair Stations . | . . . . . . . Recycling Units 7 | . 2 . . . 5 . Scanalyzers . | . . . . . . . Garrison Access . | . . . . . . . Total Hacks 125 | . 32 . 29 22 26 16 Successful 81 | . 15 . 21 13 16 16 Failed 44 | . 17 . 8 9 10 . Catastrophic 3 | . . . 2 . 1 . Database Lockouts . | . . . . . . . Manual 68 | . 18 . 19 14 17 . Terminals 90 | . 26 . 29 22 13 . Fabricators . | . . . . . . . Repair Stations . | . . . . . . . Recycling Units 19 | . 6 . . . 13 . Scanalyzers . | . . . . . . . Garrison Access . | . . . . . . . Terminal Hacks 40 | . 7 . 10 6 1 16 Record 16 | . 1 . . . . 15 Robot Analysis 4 | . 3 . 1 . . . Prototype ID Bank 3 | . . . 1 1 1 . Open Door 2 | . . . . 2 . . Branch Access Points 1 | . . . 1 . . . Emergency Access Points 1 | . . . 1 . . . Terminal Index 2 | . . . 2 . . . Unreport Threat 1 | . 1 . . . . . Locate Traps 2 | . 1 . 1 . . . Reprogram Traps 1 | . . . 1 . . . Recall Investigation 1 | . . . . 1 . . Recall Reinforcements 1 | . . . . 1 . . Hauler Manifests 2 | . 1 . . 1 . . Registered Components 1 | . . . 1 . . . Zone Layout 1 | . . . 1 . . . Proto ID Catalog 1 | . . . . . . 1 Fabricator Hacks . | . . . . . . . Repair Station Hacks . | . . . . . . . Recycling Unit Hacks 6 | . 1 . . . 5 . Retrieve Components 6 | . 1 . . . 5 . Scanalyzer . | . . . . . . . Garrison Access Hacks . | . . . . . . . Unauthorized Hacks 35 | . 7 . 11 7 10 . Terminals 30 | . 7 . 11 7 5 . Track 1 | . . . 1 . . . Botnet 7 | . 2 . 2 2 1 . Operators 2 | . . . 2 . . . Skim 20 | . 5 . 6 5 4 . Fabricators . | . . . . . . . Repair Stations . | . . . . . . . Recycling Units 5 | . . . . . 5 . Tunnel 5 | . . . . . 5 . Scanalyzers . | . . . . . . . Garrison Access . | . . . . . . . Data Cores Recovered 1 | . . . . 1 . . Used . | . . . . . . . Hacking Detections 28 | . 8 . 7 8 5 . Full Trace Events 1 | . 1 . . . . . Feedback Events . | . . . . . . . Feedback Blocked . | . . . . . . . Robot Schematics Acquired . | . . . . . . . Robots Built . | . . . . . . . Authchips . | . . . . . . . Time . | . . . . . . . Total Robot Build Rating . | . . . . . . . Part Schematics Acquired . | . . . . . . . Parts Built . | . . . . . . . Authchips . | . . . . . . . Time . | . . . . . . . Total Part Build Rating . | . . . . . . . Parts Repaired . | . . . . . . . Time . | . . . . . . . Parts Recycled . | . . . . . . . Recycled Matter . | . . . . . . . Retrieved Matter . | . . . . . . . Retrieved Components 11 | . 1 . . . 10 . Parts Scanalyzed . | . . . . . . . Part Schematics Acquired . | . . . . . . . Parts Damaged . | . . . . . . . Bothacking | -11 -10 -10 -9 -9 -9 -9 ------------ Run | Yrd Mat Min Mat Sto Rec Scr Used RIF Installer . | . . . . . . . Robots Hacked . | . . . . . . . Non-combat . | . . . . . . . Combat . | . . . . . . . Robot Hacks Applied . | . . . . . . . Relay Couplers Released . | . . . . . . . Fabnet Peak Effective % . | . . . . . . . Robots Rewired 12 | . . . . . 12 . Allies Hacked . | . . . . . . . Hacks Repelled 1 | . . . . . 1 . Allies | -11 -10 -10 -9 -9 -9 -9 -------- Run | Yrd Mat Min Mat Sto Rec Scr Total Allies 22 | . . . . 10 12 . Largest Group 18 | . . . . 10 18 18 Highest-Rated Group 210 | . . . . 88 210 210 Highest-Rated Ally 34 | . . . . 16 34 34 Total Orders 3 | . . . . . . 3 STAY 2 | . . . . . . 2 FOLLOW 1 | . . . . . . 1 Ally Attacks 95 | . . . . 14 18 63 Total Damage 1125 | . . . . 76 146 903 Kills 12 | . . . . . 2 10 Allies Corrupted . | . . . . . . . Allies Melted 1 | . . . . . . 1 Intel | -11 -10 -10 -9 -9 -9 -9 ------- Run | Yrd Mat Min Mat Sto Rec Scr Active Infowar (turns) 6597 | 95 348 . 2423 1458 1924 349 Optics 5982 | . . . 2251 1458 1924 349 Seismic 719 | 95 348 . 276 . . . Robot Analysis Total 4 | . 3 . 1 . . . Derelict Logs Recovered . | . . . . . . . Drone Launches . | . . . . . . . Drone Recoveries . | . . . . . . . Exploration | -11 -10 -10 -9 -9 -9 -9 ------------- Run | Yrd Mat Min Mat Sto Rec Scr Turns Passed 10540 | 133 1340 447 2424 1458 1924 2814 Spaces Moved 5538 | 51 691 196 953 470 711 2466 Core 3 | 3 . . . . . . Treads 3049 | 48 691 196 953 444 711 6 Legs . | . . . . . . . Wheels 1277 | . . . . 26 . 1251 Hover . | . . . . . . . Flight 1209 | . . . . . . 1209 Fastest Speed 34 | 50 160 160 160 175 240 34 Average Speed 156 | 153 160 160 214 236 240 92 Slowest Speed 314 | 160 160 160 240 240 240 314 Overloaded Moves . | . . . . . . . Propulsion Burnouts . | . . . . . . . Robots Hopped 4 | . . . . . . 4 Potential Cave-ins . | . . . . . . . Cave-ins Triggered . | . . . . . . . Exploration Rate (%) 73 | 5 98 46 87 86 99 91 Regions Visited 6 Branch Regions 4 Pre-discovered Areas 12 | . . . 4 3 5 . Known Exits Taken 3 | . . . 1 1 1 . Unknown Exits Taken 3 | 1 1 1 . . . . Scrap Searched 3 | . . . . . . 3 Spaces Dug 8 | . 1 . 1 . . 6 Terrain Destroyed 91 | . 5 . 39 40 1 6 Melee 2 | . 1 . 1 . . . Projectile 19 | . . . 10 8 1 . AOE 64 | . 4 . 28 32 . . Terrain Rammed . | . . . . . . . Walls Destroyed . | . . . . . . . Machines Disabled . | . . . . . . . Actions | -11 -10 -10 -9 -9 -9 -9 --------- Run | Yrd Mat Min Mat Sto Rec Scr Total 7007 | 76 820 310 1187 700 909 3005 Wait 821 | . 35 86 49 127 71 453 Move 5525 | 50 690 195 952 469 710 2459 Hop 3 | . . . . . . 3 Pick Up 77 | 2 11 4 32 6 1 21 Fast Attach 18 | 7 4 . 4 . . 3 Attach 14 | . . 3 2 2 . 7 Detach 11 | . 1 . . . . 10 Swap 79 | . 8 5 32 20 2 12 Drop 90 | . 7 4 31 12 1 35 Fire 231 | 17 56 11 77 61 9 . Melee 7 | . 4 . 1 . . 2 Ram . | . . . . . . . Kick . | . . . . . . . Crush 18 | . 4 2 7 3 2 . Escape Stasis . | . . . . . . . Rewire 113 | . . . . . 113 . Trap . | . . . . . . . Miscellaneous . | . . . . . . . Route ------- -11/Scrapyard -10/Materials (discovered 5 exits: *Mat x3 / [*Min x2]) -10/Mines -9/Materials (discovered 5 exits: [*Mat x2] / *Min x2 / *Sto) -9/Storage (discovered 2 exits: [*Mat] / *Rec) -9/Recycling (discovered 2 exits: [*Fac] / *Scr) -9/Scraptown (discovered 2 exits: *Fac x2) History --------- Turn | Location | Event 52 | -11/Scrapyard | Discovered new exit (range 12) 134 | -11/Scrapyard | Entered Materials 306 | -10/Materials | Build established: Mutant 361 | -10/Materials | Discovered new exit (range 16) 729 | -10/Materials | Discovered new exit (range 15) 859 | -10/Materials | Discovered new exit (range 8) 982 | -10/Materials | Discovered new exit (range 16) 1338 | -10/Materials | Discovered new exit (range 3) 1474 | -10/Materials | Entered Mines 1529 | -10/Mines | Met a Derelict bent on vengeance 1579 | -10/Mines | Found a Scrap Suit stashed away for nefarious purposes 1582 | -10/Mines | Found Scrap Suit 1602 | -10/Mines | Discovered new exit (range 5) 1783 | -10/Mines | Assembled infested the area 1921 | -10/Mines | Entered Materials 1921 | -9/Materials | Evolved 2 slots: Propulsion x1, Utility x1 2094 | -9/Materials | Build established: Scavenger-Mutant 2485 | -9/Materials | Build established: Mutant 2658 | -9/Materials | Discovered new exit (range 12) 3017 | -9/Materials | Discovered new exit (range 8) 3169 | -9/Materials | Identified exit to Mines 3169 | -9/Materials | Identified exit to Storage 3895 | -9/Materials | Learned 2 Storage zone layouts 3934 | -9/Materials | Learned 2 Storage zone layouts 3962 | -9/Materials | Learned location of Mines (-9) 4001 | -9/Materials | Learned 4 Recycling zone layouts 4268 | -9/Materials | Discovered new exit (range 15) 4345 | -9/Materials | Entered Storage 4346 | -9/Storage | Identified exit to Recycling 4547 | -9/Storage | Garrison activated, responded to threat 4622 | -9/Storage | Found Prototype Launcher 4622 | -9/Storage | Identified Scatter Rocket Array 4668 | -9/Storage | Core integrity fell below 50% 4834 | -9/Storage | Discovered new exit (range 18) 5613 | -9/Storage | Learned location of Zion (-6) 5616 | -9/Storage | Assisted by bots powering up and referring to "LRC-V3" 5710 | -9/Storage | Used back door to open Recycling access 5748 | -9/Storage | Loaded intel: 18 trap records 5776 | -9/Storage | Learned Materials emergency access door positions 5803 | -9/Storage | Entered Recycling 5803 | -9/Recycling | Accompanied by 10 allies 5804 | -9/Recycling | Identified exit to Scraptown 5929 | -9/Recycling | Build established: Commander-Mutant 6816 | -9/Recycling | Discovered new exit (range 17) 7074 | -9/Recycling | Lost 4 allies 7592 | -9/Recycling | Scanned before Scraplab entrance 7628 | -9/Recycling | Entered Scraplab 7727 | -9/Recycling | Entered Scraptown 7727 | -9/Scraptown | Accompanied by 18 allies 8185 | -9/Scraptown | Visited Cyclists 8228 | -9/Scraptown | Visited SPCMW 8246 | -9/Scraptown | Visited Symbiants 8277 | -9/Scraptown | Visited Assassins FH 8307 | -9/Scraptown | Visited UFD Registry 8307 | -9/Scraptown | Registered with UFD as "Gunsys" 8323 | -9/Scraptown | Visited CPS Storage 8351 | -9/Scraptown | Visited Fellowship of the Rings 8397 | -9/Scraptown | Discovered new exit (range 11) 8572 | -9/Scraptown | Entered Cyclist Reading Room 8657 | -9/Scraptown | Visited The Evicted 8795 | -9/Scraptown | Visited LU-1G1's Boring Crew 8847 | -9/Scraptown | Visited Science Testing Area 8870 | -9/Scraptown | Visited Junk Repository 9014 | -9/Scraptown | Visited Science Guys 9059 | -9/Scraptown | Visited Research Penetration Think Tank 9090 | -9/Scraptown | Visited Junk Repository 9128 | -9/Scraptown | Visited Curators Association 9162 | -9/Scraptown | Visited Infowarlord's Domain 9170 | -9/Scraptown | Found Exp. Sensor Array 9199 | -9/Scraptown | Visited Chapter 10 9227 | -9/Scraptown | Visited Supply Room 9937 | -9/Scraptown | Met Optimus 9937 | -9/Scraptown | Accepted into 0bPrime 10337 | -9/Scraptown | Civil war broke out across Scraptown 10344 | -9/Scraptown | Found Prototype Special Weapon 10411 | -9/Scraptown | Identified exit to Factory 10467 | -9/Scraptown | Identified LU-1G1's Laser Shovel 10471 | -9/Scraptown | Core integrity fell below 20% 10485 | -9/Scraptown | Lost 22 allies 10503 | -9/Scraptown | Found Master Drone Bay 10529 | -9/Scraptown | Found DM-GVY's Chainsaw 10539 | -9/Scraptown | Found Surveybot 24 Chip 10541 | -9/Scraptown | Destroyed by CN-IAF(j) with Overtuned Pulse Rifle Last Messages --------------- 10501_ BX-GPL(j): "We are one!" 10503_ Acquired Master Drone Bay. 10507_ LU-1G1's Laser Shovel disintegrates Wall. 10508_ LU-1G1's Laser Shovel disintegrates Earth. 10509_ LU-1G1's Laser Shovel disintegrates Wall. 10510_ LU-1G1's Laser Shovel disintegrates Machine. 10512_ Dropped Adv. Heat Sink. 10516_ LU-1G1's Laser Shovel disintegrates Machine. 10520_ S3-16P(j) heat short circuits Ovr. Pulse Rifle. 10522_ LU-1G1's Laser Shovel disintegrates Wall. 10524_ The unstable cave ceiling collapses. 10526_ LU-1G1's Laser Shovel disintegrates Enclosure. 10527_ Dropped Hvy. Plasma Cannon. 10528_ Dropped Scythe. 10529_ Acquired DM-GVY's Chainsaw. 10533_ LU-1G1's Laser Shovel disintegrates Machine. 10536_ Acquired 50 matter. 10536_ System Shield destroyed. 10537_ LU-1G1's Laser Shovel disintegrates Enclosure. 10539_ Acquired Surveybot 24 Chip. Map ----- +----------------------------------------------------+ | | | | | | | | | ?????????????????????????????????????????????????? | | ?????????????????????????????????????????????????? | | ?????????????????????????????????????????????????? | | ?????????????????????????????????????????????????? | | ?????????????????????????????????????????????????? | | ?????????????????????????????????????????????????? | | ?????????????????????????????????????????????????? | | ?????????????????????????????????????????????????? | | ?????????????????????????????????????????????????? | | ?????????????????????????????????????????????????? | | ?????????????????????????????????????????????????? | | ?????????????????????????????????????????????????? | | ?????????????????????????????????????????????????? | | ???????????????????????####??????????????????????? | | ??????????????????????##* ##??????